[Event "Titled Tuesday Blitz March 21 Early 2023"]
[White "Dubov, Daniil"]
[Black "Rustemov, Alexander"]
[WhiteFideId "24126055"]
[BlackFideId "4119002"]
[WhiteElo "2802"]
[BlackElo "2867"]
[Result "1-0"]
[Round "03"]
[TimeControl "180+2"]
[Date "2023.03.21"]
[WhiteClock "0:00:04"]
[BlackClock "0:00:01"]

1. d4 {[%clk 0:02:58]}  d5 {[%clk 0:03:00]} 2. c4 {[%clk 0:02:58]}  dxc4 {[%clk 0:02:59]} 3. e4 {[%clk 0:02:58]}  Nf6 {[%clk 0:02:58]} 4. e5 {[%clk 0:02:57]}  Nd5 {[%clk 0:02:59]} 5. Bxc4 {[%clk 0:02:57]}  Nb6 {[%clk 0:02:59]} 6. Bb5+ {[%clk 0:02:57]}  c6 {[%clk 0:02:49]} 7. Bd3 {[%clk 0:02:50]}  Qxd4 {[%clk 0:02:46]} 8. Nf3 {[%clk 0:02:50]}  Qd8 {[%clk 0:02:43]} 9. O-O {[%clk 0:02:50]}  Bg4 {[%clk 0:02:40]} 10. h3 {[%clk 0:02:39]}  Bxf3 {[%clk 0:02:40]} 11. Qxf3 {[%clk 0:02:40]}  e6 {[%clk 0:02:41]} 12. Nc3 {[%clk 0:02:38]}  N8d7 {[%clk 0:02:41]} 13. Bf4 {[%clk 0:02:37]}  Be7 {[%clk 0:02:34]} 14. Qg3 {[%clk 0:02:31]}  g6 {[%clk 0:02:31]} 15. Rfd1 {[%clk 0:02:24]}  Nd5 {[%clk 0:02:28]} 16. Nxd5 {[%clk 0:01:56]}  exd5 {[%clk 0:02:22]} 17. e6 {[%clk 0:01:30]}  Nf6 {[%clk 0:02:12]} 18. exf7+ {[%clk 0:01:08]}  Kxf7 {[%clk 0:02:13]} 19. Be5 {[%clk 0:01:06]}  Re8 {[%clk 0:02:05]} 20. Re1 {[%clk 0:01:03]}  Nh5 {[%clk 0:01:40]} 21. Qf3+ {[%clk 0:01:01]}  Bf6 {[%clk 0:01:35]} 22. g4 {[%clk 0:00:49]}  Kg7 {[%clk 0:01:35]} 23. Bh2 {[%clk 0:00:47]}  Bxb2 {[%clk 0:01:22]} 24. Rxe8 {[%clk 0:00:45]}  Qxe8 {[%clk 0:01:14]} 25. Rb1 {[%clk 0:00:46]}  b6 {[%clk 0:00:17]} 26. Rxb2 {[%clk 0:00:43]}  Qe1+ {[%clk 0:00:17]} 27. Bf1 {[%clk 0:00:27]}  Rf8 {[%clk 0:00:18]} 28. Qa3 {[%clk 0:00:21]}  Nf4 {[%clk 0:00:15]} 29. Bxf4 {[%clk 0:00:18]}  Rxf4 {[%clk 0:00:16]} 30. Qxa7+ {[%clk 0:00:18]}  Rf7 {[%clk 0:00:12]} 31. Qxb6 {[%clk 0:00:18]}  Qc3 {[%clk 0:00:09]} 32. Qb3 {[%clk 0:00:15]}  Qf6 {[%clk 0:00:08]} 33. Rc2 {[%clk 0:00:11]}  g5 {[%clk 0:00:05]} 34. Qc3 {[%clk 0:00:09]}  Rc7 {[%clk 0:00:02]} 35. Qc5 {[%clk 0:00:07]}  Qf8 {[%clk 0:00:01]} 36. Qb6 {[%clk 0:00:05]}  Qe7 {[%clk 0:00:01]} 37. Rxc6 {[%clk 0:00:04]}  Rd7 {[%clk 0:00:01]} 38. Qd4+ {[%clk 0:00:04]}  Kf7 {[%clk 0:00:01]} 39. a4 {[%clk 0:00:04]} 1-0


[Site "https://www.chess.com"]

[Event "Titled Tuesday Blitz March 21 Early 2023"]
[White "Duda, Jan-Krzysztof"]
[Black "Moussard, Jules"]
[WhiteFideId "1170546"]
[BlackFideId "642908"]
[WhiteElo "2790"]
[BlackElo "2610"]
[Result "1/2-1/2"]
[Round "03"]
[TimeControl "180+2"]
[Date "2023.03.21"]
[WhiteClock "0:00:06"]
[BlackClock "0:00:02"]

1. e4 {[%clk 0:03:00]}  c5 {[%clk 0:02:59]} 2. Nf3 {[%clk 0:03:01]}  d6 {[%clk 0:02:59]} 3. Bc4 {[%clk 0:03:00]}  Nf6 {[%clk 0:02:55]} 4. d3 {[%clk 0:03:00]}  g6 {[%clk 0:02:54]} 5. c3 {[%clk 0:02:59]}  Bg7 {[%clk 0:02:54]} 6. Bb3 {[%clk 0:02:58]}  O-O {[%clk 0:02:53]} 7. O-O {[%clk 0:02:59]}  Nc6 {[%clk 0:02:52]} 8. Re1 {[%clk 0:02:59]}  e5 {[%clk 0:02:51]} 9. h3 {[%clk 0:02:54]}  h6 {[%clk 0:02:40]} 10. Be3 {[%clk 0:02:52]}  b6 {[%clk 0:02:37]} 11. Nbd2 {[%clk 0:02:48]}  d5 {[%clk 0:02:20]} 12. Nf1 {[%clk 0:02:26]}  Be6 {[%clk 0:02:07]} 13. Ng3 {[%clk 0:02:21]}  Re8 {[%clk 0:02:05]} 14. Ba4 {[%clk 0:02:14]}  Bd7 {[%clk 0:02:02]} 15. a3 {[%clk 0:02:11]}  Qc7 {[%clk 0:01:52]} 16. b4 {[%clk 0:02:04]}  d4 {[%clk 0:01:35]} 17. cxd4 {[%clk 0:01:54]}  cxd4 {[%clk 0:01:36]} 18. Bd2 {[%clk 0:01:55]}  Rac8 {[%clk 0:01:36]} 19. Rc1 {[%clk 0:01:48]}  Qd8 {[%clk 0:01:32]} 20. Qb3 {[%clk 0:01:39]}  Bf8 {[%clk 0:01:12]} 21. Rc2 {[%clk 0:01:27]}  Nb8 {[%clk 0:01:12]} 22. Rxc8 {[%clk 0:01:13]}  Qxc8 {[%clk 0:01:11]} 23. Rc1 {[%clk 0:01:08]}  Qa6 {[%clk 0:01:07]} 24. Bxd7 {[%clk 0:01:04]}  Nbxd7 {[%clk 0:01:08]} 25. Rc6 {[%clk 0:00:45]}  Qb7 {[%clk 0:00:23]} 26. b5 {[%clk 0:00:38]}  Nc5 {[%clk 0:00:17]} 27. Qc4 {[%clk 0:00:33]}  Bg7 {[%clk 0:00:16]} 28. Bxh6 {[%clk 0:00:26]}  Bxh6 {[%clk 0:00:14]} 29. Rxf6 {[%clk 0:00:27]}  Kg7 {[%clk 0:00:12]} 30. Rc6 {[%clk 0:00:23]}  Qe7 {[%clk 0:00:11]} 31. a4 {[%clk 0:00:18]}  Bf4 {[%clk 0:00:08]} 32. Ne2 {[%clk 0:00:17]}  Bh6 {[%clk 0:00:09]} 33. a5 {[%clk 0:00:18]}  Rb8 {[%clk 0:00:06]} 34. h4 {[%clk 0:00:11]}  Nd7 {[%clk 0:00:02]} 35. a6 {[%clk 0:00:10]}  Nc5 {[%clk 0:00:03]} 36. g3 {[%clk 0:00:06]}  Rd8 {[%clk 0:00:02]} 37. Kg2 {[%clk 0:00:07]}  Rd6 {[%clk 0:00:01]} 38. Rxd6 {[%clk 0:00:06]}  Qxd6 {[%clk 0:00:02]} 39. Neg1 {[%clk 0:00:06]}  f6 {[%clk 0:00:01]} 40. Nh2 {[%clk 0:00:06]}  Qe6 {[%clk 0:00:02]} 41. Qxe6 {[%clk 0:00:06]}  Nxe6 {[%clk 0:00:03]} 42. Ngf3 {[%clk 0:00:06]}  Nc5 {[%clk 0:00:03]} 43. Ne1 {[%clk 0:00:06]}  Bd2 {[%clk 0:00:04]} 44. Nhf3 {[%clk 0:00:07]}  Bc3 {[%clk 0:00:04]} 45. Kf1 {[%clk 0:00:07]}  Na4 {[%clk 0:00:04]} 46. Nc2 {[%clk 0:00:08]}  Ba5 {[%clk 0:00:04]} 47. Na3 {[%clk 0:00:07]}  Nc3 {[%clk 0:00:03]} 48. Nc4 {[%clk 0:00:07]}  Nxb5 {[%clk 0:00:03]} 49. g4 {[%clk 0:00:07]}  Bb4 {[%clk 0:00:04]} 50. h5 {[%clk 0:00:07]}  Be7 {[%clk 0:00:03]} 51. Nh4 {[%clk 0:00:07]}  gxh5 {[%clk 0:00:02]} 52. Nf5+ {[%clk 0:00:08]}  Kf7 {[%clk 0:00:02]} 53. gxh5 {[%clk 0:00:09]}  Bf8 {[%clk 0:00:03]} 54. h6 {[%clk 0:00:08]}  Kg6 {[%clk 0:00:03]} 55. Ke2 {[%clk 0:00:08]}  Nc7 {[%clk 0:00:03]} 56. Kd2 {[%clk 0:00:08]}  b5 {[%clk 0:00:03]} 57. Na5 {[%clk 0:00:07]}  Nxa6 {[%clk 0:00:03]} 58. Kc2 {[%clk 0:00:08]}  Nb4+ {[%clk 0:00:03]} 59. Kd2 {[%clk 0:00:09]}  a6 {[%clk 0:00:04]} 60. Ke2 {[%clk 0:00:08]}  Na2 {[%clk 0:00:03]} 61. Nc6 {[%clk 0:00:08]}  Nc3+ {[%clk 0:00:03]} 62. Kd2 {[%clk 0:00:09]}  b4 {[%clk 0:00:03]} 63. Kc2 {[%clk 0:00:09]}  Ne2 {[%clk 0:00:02]} 64. Kb3 {[%clk 0:00:09]}  Nf4 {[%clk 0:00:03]} 65. Kc4 {[%clk 0:00:09]}  b3 {[%clk 0:00:03]} 66. Kxb3 {[%clk 0:00:06]}  Nxd3 {[%clk 0:00:03]} 67. f3 {[%clk 0:00:06]}  Ne1 {[%clk 0:00:04]} 68. f4 {[%clk 0:00:07]}  exf4 {[%clk 0:00:02]} 69. Ncxd4 {[%clk 0:00:06]}  f3 {[%clk 0:00:03]} 70. Nh4+ {[%clk 0:00:04]}  Kxh6 {[%clk 0:00:04]} 71. Nhxf3 {[%clk 0:00:05]}  Nxf3 {[%clk 0:00:04]} 72. Nxf3 {[%clk 0:00:06]}  Kh5 {[%clk 0:00:04]} 73. e5 {[%clk 0:00:04]}  f5 {[%clk 0:00:05]} 74. Nd4 {[%clk 0:00:04]}  Kg6 {[%clk 0:00:02]} 75. Nxf5 {[%clk 0:00:04]}  Kxf5 {[%clk 0:00:02]} 76. Ka4 {[%clk 0:00:04]}  Kxe5 {[%clk 0:00:02]} 77. Ka5 {[%clk 0:00:05]}  Kd5 {[%clk 0:00:02]} 78. Kxa6 {[%clk 0:00:06]} 1/2-1/2


[Site "https://www.chess.com"]

[Event "Titled Tuesday Blitz March 21 Early 2023"]
[White "Ahmadzada, Ahmad"]
[Black "Fedoseev, Vladimir"]
[WhiteFideId "13413007"]
[BlackFideId "24130737"]
[WhiteElo "2388"]
[BlackElo "2752"]
[Result "1/2-1/2"]
[Round "03"]
[TimeControl "180+2"]
[Date "2023.03.21"]
[WhiteClock "0:00:06"]
[BlackClock "0:00:10"]

1. e4 {[%clk 0:03:00]}  c6 {[%clk 0:02:58]} 2. Nf3 {[%clk 0:02:59]}  d5 {[%clk 0:02:59]} 3. d3 {[%clk 0:02:59]}  e6 {[%clk 0:02:58]} 4. Nbd2 {[%clk 0:02:57]}  c5 {[%clk 0:02:58]} 5. g3 {[%clk 0:02:57]}  Nc6 {[%clk 0:02:58]} 6. Bg2 {[%clk 0:02:57]}  Nf6 {[%clk 0:02:57]} 7. O-O {[%clk 0:02:57]}  Be7 {[%clk 0:02:57]} 8. Re1 {[%clk 0:02:52]}  O-O {[%clk 0:02:55]} 9. exd5 {[%clk 0:02:45]}  exd5 {[%clk 0:02:52]} 10. d4 {[%clk 0:02:45]}  c4 {[%clk 0:02:32]} 11. c3 {[%clk 0:02:45]}  Bd6 {[%clk 0:02:29]} 12. Ne5 {[%clk 0:02:42]}  Ne7 {[%clk 0:02:28]} 13. b3 {[%clk 0:02:34]}  cxb3 {[%clk 0:02:26]} 14. axb3 {[%clk 0:02:34]}  Be6 {[%clk 0:02:23]} 15. Ba3 {[%clk 0:02:21]}  a6 {[%clk 0:02:18]} 16. Bxd6 {[%clk 0:02:09]}  Qxd6 {[%clk 0:02:16]} 17. Nd3 {[%clk 0:02:09]}  Bg4 {[%clk 0:02:05]} 18. Qc1 {[%clk 0:01:57]}  Rac8 {[%clk 0:02:03]} 19. Nc5 {[%clk 0:01:52]}  Rc7 {[%clk 0:02:02]} 20. h3 {[%clk 0:01:46]}  Bf5 {[%clk 0:01:54]} 21. Qa3 {[%clk 0:01:27]}  Rd8 {[%clk 0:01:48]} 22. Nf1 {[%clk 0:01:25]}  h6 {[%clk 0:01:33]} 23. Ne3 {[%clk 0:01:24]}  Bg6 {[%clk 0:01:32]} 24. Ng4 {[%clk 0:01:11]}  Nxg4 {[%clk 0:01:29]} 25. hxg4 {[%clk 0:01:12]}  Nc6 {[%clk 0:01:14]} 26. Re3 {[%clk 0:01:07]}  a5 {[%clk 0:01:10]} 27. Qa2 {[%clk 0:00:53]}  b6 {[%clk 0:01:06]} 28. Na4 {[%clk 0:00:50]}  b5 {[%clk 0:00:56]} 29. Nc5 {[%clk 0:00:46]}  b4 {[%clk 0:00:56]} 30. Qd2 {[%clk 0:00:44]}  bxc3 {[%clk 0:00:53]} 31. Rxc3 {[%clk 0:00:45]}  Rdc8 {[%clk 0:00:44]} 32. Rac1 {[%clk 0:00:43]}  Nb4 {[%clk 0:00:42]} 33. Re1 {[%clk 0:00:34]}  Kh7 {[%clk 0:00:33]} 34. f4 {[%clk 0:00:31]}  Be4 {[%clk 0:00:33]} 35. Nxe4 {[%clk 0:00:25]}  dxe4 {[%clk 0:00:33]} 36. Bxe4+ {[%clk 0:00:26]}  g6 {[%clk 0:00:33]} 37. Rec1 {[%clk 0:00:24]}  Rxc3 {[%clk 0:00:26]} 38. Rxc3 {[%clk 0:00:25]}  Rd8 {[%clk 0:00:26]} 39. d5 {[%clk 0:00:21]}  Re8 {[%clk 0:00:22]} 40. Bf3 {[%clk 0:00:19]}  Qb6+ {[%clk 0:00:21]} 41. Kg2 {[%clk 0:00:19]}  Rd8 {[%clk 0:00:21]} 42. f5 {[%clk 0:00:16]}  gxf5 {[%clk 0:00:12]} 43. gxf5 {[%clk 0:00:16]}  Qf6 {[%clk 0:00:13]} 44. Rc4 {[%clk 0:00:16]}  Rd6 {[%clk 0:00:09]} 45. Rh4 {[%clk 0:00:13]}  Qe5 {[%clk 0:00:09]} 46. Rh5 {[%clk 0:00:05]}  Kg7 {[%clk 0:00:08]} 47. Rh4 {[%clk 0:00:03]}  Kf8 {[%clk 0:00:06]} 48. Rxh6 {[%clk 0:00:02]}  Ke7 {[%clk 0:00:06]} 49. Rxd6 {[%clk 0:00:02]}  Kxd6 {[%clk 0:00:07]} 50. g4 {[%clk 0:00:02]}  f6 {[%clk 0:00:07]} 51. g5 {[%clk 0:00:03]}  Qxf5 {[%clk 0:00:06]} 52. gxf6 {[%clk 0:00:03]}  Qxf6 {[%clk 0:00:07]} 53. Qe3 {[%clk 0:00:03]}  Qb2+ {[%clk 0:00:06]} 54. Kh3 {[%clk 0:00:04]}  Qh8+ {[%clk 0:00:06]} 55. Kg2 {[%clk 0:00:03]}  Qg7+ {[%clk 0:00:06]} 56. Kf1 {[%clk 0:00:03]}  Qa1+ {[%clk 0:00:05]} 57. Kg2 {[%clk 0:00:03]}  Qb2+ {[%clk 0:00:06]} 58. Kh3 {[%clk 0:00:02]}  Nxd5 {[%clk 0:00:06]} 59. Qh6+ {[%clk 0:00:02]}  Qf6 {[%clk 0:00:06]} 60. Qxf6+ {[%clk 0:00:02]}  Nxf6 {[%clk 0:00:06]} 61. Kg3 {[%clk 0:00:02]}  Kc5 {[%clk 0:00:07]} 62. Bd1 {[%clk 0:00:03]}  Kb4 {[%clk 0:00:08]} 63. Kf4 {[%clk 0:00:04]}  Kc3 {[%clk 0:00:09]} 64. Ke5 {[%clk 0:00:04]}  Nd7+ {[%clk 0:00:08]} 65. Kd6 {[%clk 0:00:04]}  Nf8 {[%clk 0:00:07]} 66. Kc5 {[%clk 0:00:05]}  Kd2 {[%clk 0:00:06]} 67. Kb5 {[%clk 0:00:04]}  Kxd1 {[%clk 0:00:06]} 68. Kxa5 {[%clk 0:00:05]}  Kc2 {[%clk 0:00:07]} 69. b4 {[%clk 0:00:05]}  Kc3 {[%clk 0:00:08]} 70. b5 {[%clk 0:00:05]}  Ne6 {[%clk 0:00:09]} 71. Kb6 {[%clk 0:00:05]}  Nd4 {[%clk 0:00:09]} 72. Kc5 {[%clk 0:00:06]}  Nxb5 {[%clk 0:00:10]} 1/2-1/2


[Site "https://www.chess.com"]

[Event "Titled Tuesday Blitz March 21 Early 2023"]
[White "Sarana, Alexey"]
[Black "Drygalov, Andrey"]
[WhiteFideId "24133795"]
[BlackFideId "24171735"]
[WhiteElo "2714"]
[BlackElo "2471"]
[Result "0-1"]
[Round "03"]
[TimeControl "180+2"]
[Date "2023.03.21"]
[WhiteClock "0:00:01"]
[BlackClock "0:00:03"]

1. c4 {[%clk 0:02:58]}  Nf6 {[%clk 0:02:59]} 2. Nc3 {[%clk 0:02:58]}  e6 {[%clk 0:02:57]} 3. e4 {[%clk 0:02:58]}  c5 {[%clk 0:02:58]} 4. e5 {[%clk 0:02:54]}  Ng8 {[%clk 0:02:57]} 5. Nf3 {[%clk 0:02:54]}  Nc6 {[%clk 0:02:56]} 6. d4 {[%clk 0:02:55]}  cxd4 {[%clk 0:02:57]} 7. Nxd4 {[%clk 0:02:55]}  Nxe5 {[%clk 0:02:57]} 8. Ndb5 {[%clk 0:02:55]}  a6 {[%clk 0:02:55]} 9. Nd6+ {[%clk 0:02:53]}  Bxd6 {[%clk 0:02:56]} 10. Qxd6 {[%clk 0:02:54]}  f6 {[%clk 0:02:56]} 11. Be3 {[%clk 0:02:53]}  Ne7 {[%clk 0:02:38]} 12. Bb6 {[%clk 0:02:53]}  Nf5 {[%clk 0:02:38]} 13. Qb4 {[%clk 0:02:53]}  Qe7 {[%clk 0:02:33]} 14. c5 {[%clk 0:02:48]}  Nc6 {[%clk 0:02:23]} 15. Qa3 {[%clk 0:02:14]}  d5 {[%clk 0:02:20]} 16. cxd6 {[%clk 0:02:13]}  Qxd6 {[%clk 0:02:20]} 17. Qxd6 {[%clk 0:02:14]}  Nxd6 {[%clk 0:02:20]} 18. O-O-O {[%clk 0:02:14]}  Nf5 {[%clk 0:02:11]} 19. Bc4 {[%clk 0:02:08]}  O-O {[%clk 0:02:03]} 20. Rhe1 {[%clk 0:02:07]}  h5 {[%clk 0:01:36]} 21. f4 {[%clk 0:01:59]}  Kh7 {[%clk 0:01:31]} 22. Ne4 {[%clk 0:01:57]}  e5 {[%clk 0:01:27]} 23. g3 {[%clk 0:01:46]}  Nfd4 {[%clk 0:01:11]} 24. Nd6 {[%clk 0:01:38]}  Bg4 {[%clk 0:01:08]} 25. Rd3 {[%clk 0:01:39]}  Nb4 {[%clk 0:01:03]} 26. Rc3 {[%clk 0:01:29]}  Nb5 {[%clk 0:00:35]} 27. fxe5 {[%clk 0:01:00]}  fxe5 {[%clk 0:00:29]} 28. Nxb5 {[%clk 0:00:21]}  axb5 {[%clk 0:00:29]} 29. Bd3+ {[%clk 0:00:22]}  Kh8 {[%clk 0:00:23]} 30. Bb1 {[%clk 0:00:19]}  Nxa2+ {[%clk 0:00:21]} 31. Bxa2 {[%clk 0:00:20]}  Rxa2 {[%clk 0:00:21]} 32. Rxe5 {[%clk 0:00:20]}  b4 {[%clk 0:00:17]} 33. Rc7 {[%clk 0:00:14]}  b3 {[%clk 0:00:16]} 34. Bd4 {[%clk 0:00:08]}  Rd8 {[%clk 0:00:12]} 35. Re4 {[%clk 0:00:06]}  Bf5 {[%clk 0:00:07]} 36. Rf4 {[%clk 0:00:03]}  Rd5 {[%clk 0:00:07]} 37. Kd2 {[%clk 0:00:01]}  Kh7 {[%clk 0:00:04]} 38. Rxg7+ {[%clk 0:00:01]}  Kh6 {[%clk 0:00:04]} 39. Rxb7 {[%clk 0:00:02]}  Rxb2+ {[%clk 0:00:05]} 40. Ke3 {[%clk 0:00:03]}  Rxh2 {[%clk 0:00:04]} 41. Bg7+ {[%clk 0:00:01]}  Kg6 {[%clk 0:00:03]} 42. Rfb4 {[%clk 0:00:01]}  Rd6 {[%clk 0:00:02]} 43. Be5 {[%clk 0:00:02]}  Rd3+ {[%clk 0:00:03]} 44. Kf4 {[%clk 0:00:01]}  Rf2# {[%clk 0:00:03]} 0-1


[Site "https://www.chess.com"]

[Event "Titled Tuesday Blitz March 21 Early 2023"]
[White "Vakhlamov, Igor L."]
[Black "Bluebaum, Matthias"]
[WhiteFideId "24126748"]
[BlackFideId "24651516"]
[WhiteElo "2400"]
[BlackElo "2638"]
[Result "0-1"]
[Round "03"]
[TimeControl "180+2"]
[Date "2023.03.21"]
[WhiteClock "0:00:36"]
[BlackClock "0:00:54"]

1. e4 {[%clk 0:03:00]}  e6 {[%clk 0:02:59]} 2. d4 {[%clk 0:03:01]}  d5 {[%clk 0:03:00]} 3. Nc3 {[%clk 0:03:01]}  Nf6 {[%clk 0:03:00]} 4. Bd3 {[%clk 0:03:01]}  c5 {[%clk 0:02:59]} 5. Nf3 {[%clk 0:02:59]}  c4 {[%clk 0:02:59]} 6. e5 {[%clk 0:03:00]}  cxd3 {[%clk 0:02:53]} 7. exf6 {[%clk 0:03:00]}  dxc2 {[%clk 0:02:50]} 8. Qxc2 {[%clk 0:03:01]}  gxf6 {[%clk 0:02:44]} 9. O-O {[%clk 0:03:00]}  Nc6 {[%clk 0:02:42]} 10. Re1 {[%clk 0:02:58]}  Bg7 {[%clk 0:02:34]} 11. Qd2 {[%clk 0:02:30]}  O-O {[%clk 0:02:28]} 12. Qf4 {[%clk 0:02:29]}  e5 {[%clk 0:02:08]} 13. Qh4 {[%clk 0:02:00]}  e4 {[%clk 0:02:02]} 14. Bh6 {[%clk 0:01:59]}  Bxh6 {[%clk 0:01:37]} 15. Qxh6 {[%clk 0:01:54]}  exf3 {[%clk 0:01:32]} 16. Re4 {[%clk 0:01:08]}  dxe4 {[%clk 0:01:13]} 17. Nxe4 {[%clk 0:01:09]}  Bf5 {[%clk 0:01:13]} 18. Nxf6+ {[%clk 0:01:05]}  Kh8 {[%clk 0:01:13]} 19. Re1 {[%clk 0:00:58]}  Bg6 {[%clk 0:01:10]} 20. Qh4 {[%clk 0:00:41]}  Qxd4 {[%clk 0:01:02]} 21. Ng4 {[%clk 0:00:41]}  f5 {[%clk 0:00:55]} 22. Re7 {[%clk 0:00:36]}  Qd1+ {[%clk 0:00:54]} 0-1


[Site "https://www.chess.com"]

[Event "Titled Tuesday Blitz March 21 Early 2023"]
[White "Ashraf, Artin"]
[Black "Bortnyk, Olexandr"]
[WhiteFideId "22514805"]
[BlackFideId "14120828"]
[WhiteElo "2188"]
[BlackElo "2734"]
[Result "0-1"]
[Round "03"]
[TimeControl "180+2"]
[Date "2023.03.21"]
[WhiteClock "0:00:09"]
[BlackClock "0:01:29"]

1. Nf3 {[%clk 0:02:59]}  Nf6 {[%clk 0:02:59]} 2. g3 {[%clk 0:02:59]}  b6 {[%clk 0:03:00]} 3. Bg2 {[%clk 0:02:58]}  Bb7 {[%clk 0:03:01]} 4. O-O {[%clk 0:02:58]}  g6 {[%clk 0:03:01]} 5. b3 {[%clk 0:02:54]}  Bg7 {[%clk 0:03:01]} 6. Bb2 {[%clk 0:02:54]}  O-O {[%clk 0:03:01]} 7. c4 {[%clk 0:02:52]}  c5 {[%clk 0:03:02]} 8. d4 {[%clk 0:02:52]}  cxd4 {[%clk 0:03:02]} 9. Qxd4 {[%clk 0:02:49]}  d6 {[%clk 0:03:01]} 10. Rd1 {[%clk 0:02:40]}  Nc6 {[%clk 0:02:59]} 11. Qh4 {[%clk 0:02:39]}  Qc8 {[%clk 0:02:49]} 12. Nc3 {[%clk 0:02:33]}  Qg4 {[%clk 0:02:47]} 13. Qxg4 {[%clk 0:02:17]}  Nxg4 {[%clk 0:02:47]} 14. h3 {[%clk 0:02:15]}  Nge5 {[%clk 0:02:46]} 15. Nxe5 {[%clk 0:02:13]}  Bxe5 {[%clk 0:02:47]} 16. Rd2 {[%clk 0:02:13]}  Rfe8 {[%clk 0:02:27]} 17. Nb5 {[%clk 0:01:46]}  Bxb2 {[%clk 0:02:23]} 18. Rxb2 {[%clk 0:01:46]}  Rec8 {[%clk 0:02:23]} 19. Nd4 {[%clk 0:01:44]}  Rab8 {[%clk 0:02:19]} 20. Rd2 {[%clk 0:01:40]}  Nxd4 {[%clk 0:02:17]} 21. Rxd4 {[%clk 0:01:39]}  Bxg2 {[%clk 0:02:18]} 22. Kxg2 {[%clk 0:01:39]}  b5 {[%clk 0:02:19]} 23. Rc1 {[%clk 0:01:37]}  Rc6 {[%clk 0:02:16]} 24. e4 {[%clk 0:01:25]}  Kf8 {[%clk 0:02:16]} 25. Kf3 {[%clk 0:01:21]}  Rbc8 {[%clk 0:02:14]} 26. Ke3 {[%clk 0:01:19]}  Ke8 {[%clk 0:02:12]} 27. Kd3 {[%clk 0:01:13]}  f6 {[%clk 0:02:07]} 28. Rd5 {[%clk 0:01:12]}  a6 {[%clk 0:02:04]} 29. h4 {[%clk 0:01:04]}  e6 {[%clk 0:01:56]} 30. Rd4 {[%clk 0:01:03]}  Ke7 {[%clk 0:01:56]} 31. Rc2 {[%clk 0:00:55]}  h5 {[%clk 0:01:54]} 32. f3 {[%clk 0:00:54]}  f5 {[%clk 0:01:47]} 33. exf5 {[%clk 0:00:36]}  gxf5 {[%clk 0:01:48]} 34. g4 {[%clk 0:00:36]}  e5 {[%clk 0:01:46]} 35. Rd5 {[%clk 0:00:36]}  fxg4 {[%clk 0:01:41]} 36. fxg4 {[%clk 0:00:35]}  hxg4 {[%clk 0:01:42]} 37. h5 {[%clk 0:00:28]}  bxc4+ {[%clk 0:01:37]} 38. bxc4 {[%clk 0:00:28]}  Rh8 {[%clk 0:01:36]} 39. Rg2 {[%clk 0:00:27]}  Rxh5 {[%clk 0:01:34]} 40. Rxg4 {[%clk 0:00:27]}  Rh3+ {[%clk 0:01:35]} 41. Kc2 {[%clk 0:00:25]}  Ke6 {[%clk 0:01:34]} 42. Rg6+ {[%clk 0:00:24]}  Kf5 {[%clk 0:01:34]} 43. Rgxd6 {[%clk 0:00:14]}  Rxc4+ {[%clk 0:01:33]} 44. Kb2 {[%clk 0:00:15]}  Rb4+ {[%clk 0:01:33]} 45. Kc2 {[%clk 0:00:14]}  Ra3 {[%clk 0:01:32]} 46. Rc6 {[%clk 0:00:12]}  Rxa2+ {[%clk 0:01:31]} 47. Kc3 {[%clk 0:00:12]}  Rb1 {[%clk 0:01:30]} 48. Rdd6 {[%clk 0:00:09]}  Rc1+ {[%clk 0:01:29]} 0-1


[Site "https://www.chess.com"]

[Event "Titled Tuesday Blitz March 21 Early 2023"]
[White "Ohanyan, Emin"]
[Black "Howell, David W L"]
[WhiteFideId "13312022"]
[BlackFideId "410608"]
[WhiteElo "2402"]
[BlackElo "2567"]
[Result "0-1"]
[Round "03"]
[TimeControl "180+2"]
[Date "2023.03.21"]
[WhiteClock "0:00:05"]
[BlackClock "0:00:12"]

1. e4 {[%clk 0:02:55]}  e6 {[%clk 0:02:57]} 2. d4 {[%clk 0:02:52]}  d5 {[%clk 0:02:58]} 3. Bd3 {[%clk 0:02:52]}  dxe4 {[%clk 0:02:51]} 4. Bxe4 {[%clk 0:02:53]}  Nf6 {[%clk 0:02:51]} 5. Bf3 {[%clk 0:02:51]}  Bd6 {[%clk 0:02:52]} 6. Ne2 {[%clk 0:02:48]}  O-O {[%clk 0:02:53]} 7. O-O {[%clk 0:02:46]}  Nbd7 {[%clk 0:02:53]} 8. Nbc3 {[%clk 0:02:45]}  c6 {[%clk 0:02:45]} 9. Bf4 {[%clk 0:02:38]}  e5 {[%clk 0:02:43]} 10. Bg3 {[%clk 0:02:34]}  Re8 {[%clk 0:02:38]} 11. Re1 {[%clk 0:02:25]}  Qc7 {[%clk 0:02:20]} 12. Qd3 {[%clk 0:02:16]}  Nb6 {[%clk 0:01:53]} 13. Rad1 {[%clk 0:02:11]}  Bd7 {[%clk 0:01:33]} 14. Bh4 {[%clk 0:01:44]}  exd4 {[%clk 0:01:13]} 15. Bxf6 {[%clk 0:00:56]}  Bxh2+ {[%clk 0:01:13]} 16. Kh1 {[%clk 0:00:51]}  dxc3 {[%clk 0:01:14]} 17. Bd4 {[%clk 0:00:38]}  Be5 {[%clk 0:00:49]} 18. Bxb6 {[%clk 0:00:35]}  Qxb6 {[%clk 0:00:21]} 19. Qxd7 {[%clk 0:00:36]}  cxb2 {[%clk 0:00:21]} 20. Rb1 {[%clk 0:00:08]}  Qxf2 {[%clk 0:00:19]} 21. Rf1 {[%clk 0:00:03]}  Qh4+ {[%clk 0:00:15]} 22. Qh3 {[%clk 0:00:03]}  Qxh3+ {[%clk 0:00:15]} 23. gxh3 {[%clk 0:00:04]}  Rad8 {[%clk 0:00:15]} 24. Be4 {[%clk 0:00:02]}  Rd2 {[%clk 0:00:14]} 25. Bd3 {[%clk 0:00:03]}  b5 {[%clk 0:00:09]} 26. Rfd1 {[%clk 0:00:03]}  Rxd1+ {[%clk 0:00:04]} 27. Rxd1 {[%clk 0:00:03]}  g6 {[%clk 0:00:04]} 28. Rb1 {[%clk 0:00:04]}  Bf6 {[%clk 0:00:04]} 29. Kg2 {[%clk 0:00:04]}  Re3 {[%clk 0:00:05]} 30. Kf2 {[%clk 0:00:01]}  Rxh3 {[%clk 0:00:05]} 31. Be4 {[%clk 0:00:02]}  c5 {[%clk 0:00:04]} 32. c3 {[%clk 0:00:02]}  Bxc3 {[%clk 0:00:04]} 33. Bg2 {[%clk 0:00:01]}  Rd3 {[%clk 0:00:03]} 34. Nxc3 {[%clk 0:00:01]}  Rxc3 {[%clk 0:00:04]} 35. Rxb2 {[%clk 0:00:02]}  b4 {[%clk 0:00:04]} 36. Rd2 {[%clk 0:00:01]}  a5 {[%clk 0:00:05]} 37. Rd8+ {[%clk 0:00:01]}  Kg7 {[%clk 0:00:05]} 38. Bd5 {[%clk 0:00:02]}  Rd3 {[%clk 0:00:05]} 39. Ke2 {[%clk 0:00:03]}  Rd4 {[%clk 0:00:04]} 40. Rd7 {[%clk 0:00:04]}  Kh6 {[%clk 0:00:05]} 41. Ke3 {[%clk 0:00:02]}  f5 {[%clk 0:00:05]} 42. Be6 {[%clk 0:00:02]}  Rxd7 {[%clk 0:00:05]} 43. Bxd7 {[%clk 0:00:03]}  Kg5 {[%clk 0:00:05]} 44. Kd3 {[%clk 0:00:03]}  Kf4 {[%clk 0:00:06]} 45. Kc4 {[%clk 0:00:04]}  Ke3 {[%clk 0:00:05]} 46. Kxc5 {[%clk 0:00:04]}  f4 {[%clk 0:00:06]} 47. Kb5 {[%clk 0:00:04]}  f3 {[%clk 0:00:07]} 48. Kxa5 {[%clk 0:00:05]}  f2 {[%clk 0:00:08]} 49. Bb5 {[%clk 0:00:05]}  g5 {[%clk 0:00:09]} 50. Kxb4 {[%clk 0:00:06]}  g4 {[%clk 0:00:09]} 51. a4 {[%clk 0:00:06]}  g3 {[%clk 0:00:10]} 52. Bf1 {[%clk 0:00:05]}  Kf3 {[%clk 0:00:10]} 53. a5 {[%clk 0:00:05]}  g2 {[%clk 0:00:11]} 54. Bxg2+ {[%clk 0:00:03]}  Kxg2 {[%clk 0:00:12]} 55. a6 {[%clk 0:00:04]}  f1=Q {[%clk 0:00:12]} 56. a7 {[%clk 0:00:05]}  Qf3 {[%clk 0:00:12]} 0-1


[Site "https://www.chess.com"]